bitfinex/quotes_SOLUSD_20240625
["timestamp","ask_amount","ask_price","bid_price","bid_amount"]
[1719298265249,125.4655,136.06,136.01,9.12]
[1719298265450,125.4655,136.06,136.0,9.12]
[1719298265769,9.12,136.05,136.0,9.12]
[1719298266367,116.3455,136.06,136.0,9.12]
[1719298266576,125.4655,136.06,136.0,9.12]
[1719298266775,125.4655,136.06,136.01,9.12]
[1719298267865,125.4655,136.06,135.96,26.0147]
[1719298268173,125.4655,136.06,136.01,9.12]
[1719298268674,116.3455,136.06,136.01,9.12]
[1719298268872,125.4655,136.06,136.01,9.12]
[1719298269255,125.4655,136.06,135.97,0.34]
[1719298269576,125.4655,136.06,136.01,9.12]
[1719298270475,116.3455,136.06,136.01,9.12]
[1719298270660,125.4655,136.06,136.01,9.12]
[1719298271055,6.016,136.02,135.96,410.4]
[1719298271257,124.6786,136.01,135.96,410.4]
[1719298271470,100.0,135.99,135.96,410.4]
[1719298271773,100.0,135.99,135.94,9.12]
[1719298271959,100.0,135.99,135.93,5.79491661]
[1719298272168,100.0,135.99,135.94,29.12]
[1719298272364,100.0,135.99,135.94,20.0]
[1719298272667,100.0,135.99,135.91,15.9966]
[1719298272668,100.0,135.97,135.92,20.0]
[1719298272856,100.0,135.97,135.92,29.12]
[1719298273056,100.0,135.97,135.89,7.18562362]
[1719298273275,100.0,135.97,135.88,396.6965]
[1719298273276,109.12,135.97,135.88,396.6965]
[1719298273583,109.12,135.97,135.88,6.2965]
[1719298273956,109.12,135.97,135.92,9.12]
[1719298274156,109.12,135.97,135.88,6.2965]
[1719298274367,109.12,135.97,135.92,9.12]
[1719298275075,100.0,135.95,135.91,9.12]
[1719298275274,100.0,135.95,135.9,9.12]
[1719298275480,100.0,135.95,135.91,20.0]
[1719298277588,15.6828,135.96,135.91,20.0]
[1719298277901,116.5117,135.95,135.91,20.0]
[1719298278092,100.0,135.93,135.91,20.0]
[1719298280282,125.6317,135.95,135.91,20.0]
[1719298280677,116.5117,135.95,135.91,20.0]
[1719298281582,125.6317,135.95,135.91,20.0]
[1719298282269,16.6274,135.98,135.93,9.12]
[1719298282472,16.6274,135.98,135.94,9.12]
[1719298284362,100.0,135.97,135.94,9.12]
[1719298285691,100.0,135.97,135.93,9.12]
[1719298285880,100.0,135.97,135.91,20.0]
[1719298286078,109.12,135.97,135.92,9.12]
[1719298286470,100.0,135.97,135.93,20.0]
[1719298286778,100.0,135.97,135.93,29.12]
[1719298287163,100.0,135.97,135.93,20.0]
[1719298287369,9.12,135.96,135.92,20.0]
[1719298288571,9.12,135.96,135.91,14.91822313]
[1719298288789,9.12,135.96,135.92,20.0]
[1719298289570,100.0,135.94,135.92,20.0]
[1719298289790,100.0,135.94,135.9,9.12]
[1719298289988,100.0,135.94,135.91,20.0]
[1719298292973,100.0,135.94,135.87,417.50254224]
[1719298293174,100.0,135.92,135.87,21.09634224]
[1719298293387,100.0,135.92,135.88,29.12]
[1719298293679,100.0,135.92,135.88,20.0]
[1719298294096,100.0,135.92,135.85,20.0]
[1719298294276,100.0,135.92,135.87,9.12]
[1719298294475,100.0,135.92,135.88,20.0]
[1719298294683,100.0,135.92,135.88,29.12]
[1719298295077,100.0,135.92,135.88,20.0]
[1719298295282,100.0,135.92,135.88,9.12]
[1719298295496,100.0,135.92,135.85,20.0]
[1719298295692,109.12,135.92,135.87,9.12]
[1719298295881,109.12,135.92,135.88,20.0]
[1719298296709,100.0,135.92,135.88,29.12]
[1719298300294,100.0,135.94,135.88,29.12]
[1719298300499,6.1682,135.95,135.9,9.12]
[1719298300806,15.2882,135.95,135.9,9.12]
[1719298303392,15.2882,135.95,135.88,20.0]
[1719298303703,15.2882,135.95,135.89,9.12]
[1719298303704,9.12,135.94,135.89,9.12]
[1719298303907,9.12,135.94,135.9,20.0]
[1719298308108,109.12,136.0,135.95,9.12]
[1719298308387,106.1588,136.02,135.97,9.12]
[1719298308593,6.1588,136.02,135.98,9.12]
[1719298310094,106.1588,136.02,135.98,9.12]
[1719298310294,106.1588,136.02,135.97,9.12]
[1719298310791,100.0,136.0,135.97,9.12]
[1719298314927,100.0,136.0,135.94,53.0302]
[1719298315132,100.0,136.0,135.95,20.0]
[1719298315712,100.0,136.0,135.97,9.12]
[1719298320832,6.1588,136.02,135.95,20.0]
[1719298321030,116.5039,136.04,136.0,9.12]
[1719298321218,16.5039,136.04,136.0,9.12]
[1719298321534,106.4905,136.06,136.0,9.12]
[1719298321832,100.0,136.04,136.0,9.12]
[1719298322519,100.0,136.04,135.96,390.57]
[1719298322723,100.0,136.04,136.0,9.12]
[1719298325534,106.4905,136.06,136.01,9.12]
[1719298327429,100.0,136.06,136.03,9.12]
[1719298327631,22.7608,136.1,136.04,9.12]
[1719298327632,109.12,136.09,136.04,9.12]
[1719298328004,100.0,136.09,136.06,9.12]
[1719298328724,100.0,136.09,136.07,9.12]
[1719298329233,100.0,136.09,136.06,9.12]
[1719298331615,100.0,136.09,136.05,9.12]
[1719298336235,100.0,136.09,136.02,20.0]
[1719298336549,100.0,136.09,136.04,9.12]
[1719298336919,100.0,136.09,136.05,20.0]
[1719298337752,100.0,136.09,136.06,9.12]
[1719298341349,100.0,136.07,136.01,390.4]
[1719298341556,100.0,136.07,136.02,20.0]
[1719298341724,100.0,136.07,136.02,29.12]
[1719298342156,100.0,136.07,136.03,9.12]
[1719298342734,100.0,136.07,136.04,9.12]
[1719298344658,100.0,136.07,136.03,9.12]
[1719298344951,21.0467,136.08,136.02,20.0]
[1719298344952,100.0,136.05,136.02,20.0]
[1719298345329,121.0467,136.08,136.02,29.12]
[1719298345330,100.0,136.07,136.02,29.12]
[1719298345531,109.12,136.07,136.02,29.12]
[1719298345738,100.0,136.07,136.03,9.12]
[1719298346447,21.0467,136.08,136.03,9.12]
[1719298346649,21.0467,136.08,136.04,9.12]
[1719298347760,21.0467,136.08,136.05,9.12]
[1719298349856,21.0467,136.08,136.04,9.12]
[1719298350960,100.0,136.09,136.04,9.12]
[1719298351159,100.0,136.09,136.05,9.12]
[1719298351340,100.0,136.09,136.07,9.12]
[1719298352754,100.0,136.09,136.06,9.12]
[1719298353335,100.0,136.09,136.07,9.12]
[1719298358632,100.0,136.09,136.08,9.12]
[1719298370062,100.0,136.09,136.03,406.6854]
[1719298370250,100.0,136.09,136.05,9.12]
[1719298370454,100.0,136.09,136.06,20.0]
[1719298370763,100.0,136.09,136.07,9.12]
[1719298371662,100.0,136.09,136.08,9.12]
[1719298372685,100.0,136.09,136.06,20.0]
[1719298372872,100.0,136.09,136.07,9.12]
[1719298376685,15.1548,136.14,136.04,20.0]
[1719298376686,115.1548,136.14,136.08,9.12]
[1719298376872,6.4478,136.15,136.11,9.12]
[1719298377081,100.0,136.16,136.11,9.12]
[1719298377771,100.0,136.16,136.12,9.12]
[1719298378686,100.0,136.16,136.09,20.0]
[1719298388814,100.0,136.16,136.09,25.89947901]
[1719298389402,100.0,136.16,136.12,9.12]
[1719298389795,100.0,136.16,136.09,25.89947901]
[1719298390612,100.0,136.16,136.12,9.12]
[1719298391716,100.0,136.16,136.09,25.89947901]
[1719298392016,100.0,136.16,136.12,9.12]
[1719298392893,100.0,136.16,136.13,9.12]
[1719298393803,109.12,136.18,136.13,9.12]
[1719298394010,109.12,136.18,136.09,25.89947901]
[1719298394211,109.12,136.18,136.13,9.12]
[1719298395718,109.12,136.18,136.12,9.12]
[1719298396027,100.0,136.15,136.09,25.89947901]
[1719298396190,100.0,136.15,136.12,9.12]
[1719298396693,100.0,136.15,136.11,9.12]
[1719298396908,100.0,136.15,136.12,20.0]
[1719298397397,100.0,136.13,136.08,406.3379]
[1719298397613,100.0,136.11,136.08,390.4]
[1719298399418,100.0,136.11,136.05,6.0278]
[1719298399419,100.0,136.11,136.07,9.12]
[1719298399715,100.0,136.11,136.08,20.0]
[1719298400293,100.0,136.11,136.07,9.12]
[1719298400494,100.0,136.13,136.09,9.12]
[1719298400694,100.0,136.13,136.08,20.0]
[1719298400695,100.0,136.15,136.11,9.12]
[1719298401708,24.8341,136.16,136.11,9.12]
[1719298402018,109.12,136.17,136.11,9.12]
[1719298402314,100.0,136.15,136.09,16.0344]
[1719298402522,100.0,136.15,136.1,29.12]
[1719298402834,100.0,136.15,136.11,9.12]
[1719298403009,9.12,136.16,136.11,9.12]
[1719298403713,109.12,136.15,136.1,29.12]
[1719298404537,109.12,136.15,136.1,20.0]
[1719298404699,109.12,136.15,136.1,29.12]
[1719298405709,100.0,136.15,136.1,29.12]
[1719298406595,100.0,136.15,136.1,20.0]
[1719298406919,100.0,136.15,136.1,29.12]
[1719298407497,100.0,136.15,136.1,20.0]
[1719298407696,100.0,136.15,136.1,29.12]
[1719298408507,100.0,136.15,136.1,20.0]
[1719298408727,100.0,136.15,136.1,29.12]
[1719298415230,100.0,136.15,136.1,20.0]
[1719298415527,100.0,136.15,136.1,29.12]
[1719298415729,109.12,136.15,136.1,29.12]
[1719298416845,100.0,136.15,136.1,29.12]
[1719298420762,200.0,136.17,136.1,20.0]
[1719298420944,200.0,136.17,136.12,9.12]
[1719298422854,100.0,136.17,136.12,9.12]
[1719298423085,100.0,136.19,136.13,9.12]
[1719298423283,109.12,136.19,136.14,9.12]
[1719298425459,100.0,136.17,136.14,9.12]
[1719298426680,100.0,136.17,136.13,9.12]
[1719298429083,100.0,136.17,136.1,26.3443]
[1719298429282,100.0,136.17,136.13,9.12]
[1719298430065,109.12,136.19,136.13,9.12]
[1719298430255,0.17,136.18,136.13,9.12]
[1719298430656,100.0,136.17,136.1,26.3443]
[1719298430895,100.0,136.17,136.13,9.12]
[1719298433978,109.12,136.19,136.13,9.12]
[1719298434701,109.12,136.19,136.14,9.12]
[1719298436303,100.0,136.19,136.14,9.12]
[1719298436492,109.12,136.19,136.14,9.12]
[1719298437494,109.12,136.19,136.12,15.2808]
[1719298437795,100.0,136.19,136.14,9.12]
[1719298438307,100.0,136.19,136.16,9.12]
[1719298438508,100.0,136.19,136.12,15.2808]
[1719298438509,100.0,136.21,136.17,9.12]
[1719298440289,100.0,136.21,136.18,9.12]
[1719298440475,100.0,136.23,136.16,15.1854]
[1719298440674,100.0,136.23,136.17,9.12]
[1719298440675,109.12,136.23,136.17,9.12]
[1719298441797,100.0,136.21,136.17,9.12]
[1719298442501,100.0,136.21,136.16,15.1854]
[1719298442686,100.0,136.21,136.16,24.3054]
[1719298442881,100.0,136.21,136.16,15.1854]
[1719298443207,109.12,136.21,136.16,15.1854]
[1719298443503,109.12,136.21,136.14,6.1157]
[1719298443696,100.0,136.18,136.14,15.2357]
[1719298444291,100.0,136.18,136.15,9.12]
[1719298445681,100.0,136.18,136.14,6.1157]
[1719298445882,100.0,136.18,136.15,9.12]
[1719298447782,109.29,136.2,136.15,9.12]
[1719298448913,100.17,136.2,136.15,9.12]
[1719298450318,100.17,136.2,136.14,6.1157]
[1719298450319,100.0,136.2,136.16,9.12]
[1719298450690,100.0,136.2,136.14,6.1157]
[1719298450896,100.0,136.2,136.17,9.12]
[1719298451782,100.0,136.22,136.17,9.12]
[1719298454598,109.12,136.22,136.16,9.12]
[1719298454803,9.29,136.21,136.15,9.12]
[1719298455706,100.0,136.2,136.14,6.1157]
[1719298456002,100.0,136.2,136.15,9.12]
[1719298456303,100.0,136.2,136.16,9.12]
[1719298459878,100.0,136.2,136.14,6.1157]
[1719298460109,100.0,136.2,136.16,9.12]
[1719298461100,100.0,136.18,136.13,21.14791666]
[1719298461287,100.0,136.18,136.14,9.12]
[1719298463688,100.0,136.2,136.14,9.12]
[1719298463888,109.12,136.2,136.15,9.12]
[1719298464100,0.34,136.19,136.13,15.315]
[1719298464399,9.46,136.19,136.14,9.12]
[1719298464788,0.34,136.19,136.14,9.12]
[1719298470010,100.0,136.18,136.13,15.315]
[1719298470212,100.0,136.18,136.14,9.12]
[1719298470394,100.0,136.18,136.13,15.315]
[1719298470589,100.0,136.18,136.14,9.12]
[1719298482518,109.12,136.2,136.15,9.12]
[1719298482726,100.0,136.2,136.15,9.12]
[1719298483100,100.0,136.2,136.16,9.12]
[1719298483510,116.3771,136.22,136.18,9.12]
[1719298484498,100.0,136.22,136.18,9.12]
[1719298487130,100.0,136.22,136.13,405.715]
[1719298487303,100.0,136.22,136.14,65.17]
[1719298487508,100.0,136.22,136.18,9.12]
[1719298487807,100.0,136.22,136.17,9.12]
[1719298491302,100.0,136.22,136.14,65.0]
[1719298491503,109.12,136.22,136.14,65.0]
[1719298491725,109.12,136.22,136.16,9.12]
[1719298492431,100.0,136.22,136.16,9.12]
[1719298492730,109.12,136.22,136.17,9.12]
[1719298492909,100.0,136.22,136.17,9.12]
[1719298493109,109.12,136.22,136.17,9.12]
[1719298494312,100.0,136.22,136.17,9.12]
[1719298494510,109.12,136.22,136.17,9.12]
[1719298494719,100.34,136.23,136.13,15.315]
[1719298494720,100.0,136.19,136.13,15.315]
[1719298494929,100.0,136.19,136.15,9.12]
[1719298498146,115.8056,136.21,136.18,9.12]
[1719298498320,100.0,136.21,136.18,9.12]
[1719298498521,100.0,136.21,136.17,9.12]
[1719298498715,100.0,136.23,136.17,9.12]
[1719298498913,109.12,136.23,136.17,9.12]
[1719298499211,100.0,136.23,136.17,9.12]
[1719298499509,109.12,136.23,136.17,9.12]
[1719298499824,100.0,136.21,136.17,9.12]
[1719298502132,100.0,136.21,136.16,9.12]
[1719298503839,100.0,136.19,136.13,15.315]
[1719298504210,100.0,136.19,136.15,9.12]
[1719298505940,100.0,136.21,136.16,9.12]
[1719298506112,109.12,136.21,136.16,9.12]
[1719298506312,100.0,136.21,136.16,9.12]
[1719298511338,100.0,136.21,136.17,9.12]
[1719298511922,100.0,136.21,136.18,9.12]
[1719298512238,100.0,136.21,136.17,9.12]
[1719298514340,100.0,136.21,136.14,6.2424]
[1719298514547,100.0,136.21,136.17,9.12]
[1719298517346,100.0,136.21,136.16,9.12]
[1719298517549,109.12,136.21,136.16,9.12]
[1719298519075,100.0,136.21,136.16,9.12]
[1719298524658,109.12,136.21,136.16,9.12]
[1719298524958,109.12,136.21,136.15,9.12]
[1719298526467,109.12,136.21,136.13,15.485]
[1719298526663,109.12,136.19,136.13,15.315]
[1719298527162,109.12,136.19,136.14,9.12]
[1719298527461,100.0,136.19,136.14,9.12]
[1719298527672,100.0,136.19,136.15,9.12]
[1719298528752,109.12,136.21,136.16,9.12]
[1719298529642,100.0,136.21,136.16,9.12]
[1719298530672,109.12,136.21,136.16,9.12]
[1719298532370,100.0,136.21,136.16,9.12]
[1719298532750,109.12,136.21,136.16,9.12]
[1719298533201,100.0,136.21,136.16,9.12]
[1719298533388,109.12,136.21,136.16,9.12]
[1719298534281,100.0,136.21,136.16,9.12]
[1719298534450,21.091,136.24,136.15,9.12]
[1719298534648,21.091,136.24,136.19,9.12]
[1719298536676,30.211,136.24,136.19,9.12]
[1719298537083,100.0,136.22,136.18,9.12]
[1719298538376,100.0,136.22,136.17,9.12]
[1719298539977,100.0,136.19,136.14,390.4]
[1719298540164,100.0,136.19,136.16,9.12]
[1719298540762,109.12,136.21,136.16,9.12]
[1719298540967,100.0,136.21,136.17,9.12]
[1719298543891,109.12,136.23,136.18,9.12]
[1719298544791,100.0,136.23,136.18,9.12]
[1719298545083,109.12,136.23,136.18,9.12]
[1719298549770,109.12,136.23,136.14,390.4]
[1719298549998,109.12,136.23,136.17,9.12]
[1719298552274,109.12,136.23,136.17,9.12]
[1719298554702,109.12,136.23,136.13,405.885]
[1719298555007,100.0,136.19,136.15,9.12]
[1719298555670,100.0,136.19,136.14,20.0]
[1719298555865,100.0,136.19,136.15,9.12]
[1719298556675,100.0,136.19,136.14,20.0]
[1719298556985,100.0,136.19,136.15,9.12]
[1719298557379,100.0,136.19,136.14,20.0]
[1719298557585,100.0,136.19,136.15,9.12]
[1719298558406,100.0,136.21,136.16,9.12]
[1719298560217,100.0,136.21,136.17,9.12]
[1719298561594,100.0,136.21,136.14,20.0]
[1719298561793,100.0,136.21,136.16,9.12]
[1719298562519,121.091,136.24,136.18,9.12]
[1719298562520,109.12,136.23,136.18,9.12]
[1719298562704,109.29,136.23,136.18,9.12]
[1719298563713,100.0,136.19,136.13,390.4]
[1719298563935,100.0,136.16,136.13,390.4]
[1719298564092,109.12,136.16,136.13,390.4]
[1719298564428,100.0,136.16,136.13,390.4]
[1719298564599,109.12,136.16,136.13,390.4]
[1719298564912,100.0,136.16,136.13,390.4]
[1719298565314,100.17,136.18,136.13,390.4]
[1719298565493,9.12,136.17,136.13,390.4]
[1719298567035,100.17,136.18,136.13,390.4]
[1719298567241,9.12,136.17,136.13,390.4]
[1719298567734,9.12,136.14,136.13,390.4]
[1719298567936,9.12,136.14,136.1,16.5832]
[1719298568123,9.12,136.14,136.07,22.6104]
[1719298568324,9.12,136.13,136.07,31.7304]
[1719298569145,109.12,136.13,136.07,22.6104]
[1719298569438,9.12,136.12,136.07,31.7304]
[1719298570335,100.0,136.13,136.07,31.7304]
[1719298570539,109.12,136.13,136.08,9.12]
[1719298570919,109.12,136.13,136.07,28.57255005]
[1719298571132,109.12,136.13,136.08,9.12]
[1719298571330,109.12,136.13,136.07,28.57255005]
[1719298571515,109.12,136.13,136.07,37.69255005]
[1719298572366,9.12,136.1,136.04,15.1508]
[1719298572821,9.12,136.1,136.05,9.12]
[1719298574849,100.0,136.11,136.06,9.12]
[1719298575215,109.12,136.11,136.06,9.12]
[1719298576044,9.12,136.1,136.04,6.0308]
[1719298576246,109.12,136.09,136.04,15.1508]
[1719298576436,100.0,136.09,136.04,15.1508]
[1719298576835,109.12,136.09,136.04,15.1508]
[1719298577666,109.12,136.09,136.04,6.0308]
[1719298578150,109.12,136.09,136.04,15.1508]
[1719298579655,109.12,136.09,136.03,16.4273]
[1719298579836,109.12,136.09,136.04,9.12]
[1719298581347,9.12,136.1,136.03,16.4273]
[1719298581534,9.12,136.1,136.05,9.12]
[1719298582845,9.12,136.1,136.03,16.4273]
[1719298583143,100.0,136.11,136.03,16.4273]
[1719298583541,9.12,136.1,136.03,16.4273]
[1719298586289,9.12,136.09,136.03,16.4273]
[1719298586481,9.12,136.09,136.04,9.12]
[1719298589881,100.0,136.11,136.04,9.12]
[1719298590386,9.12,136.1,136.04,9.12]
[1719298591890,9.12,136.1,136.03,16.4273]
[1719298592091,9.12,136.1,136.04,9.12]
[1719298592387,9.12,136.09,136.04,9.12]
[1719298595199,100.0,136.11,136.04,9.12]
[1719298595387,9.12,136.09,136.04,9.12]
[1719298596603,9.12,136.05,136.02,390.4]
[1719298596805,9.12,136.05,136.01,5.97429194]
[1719298596806,109.12,136.05,136.01,5.97429194]
[1719298596992,109.12,136.05,135.99,15.6936]
[1719298597304,100.0,136.05,135.99,15.6936]
[1719298597482,9.12,136.04,135.99,15.6936]
[1719298597685,9.12,136.04,135.99,24.8136]
[1719298598084,100.0,136.05,135.99,24.8136]
[1719298598290,9.12,136.04,135.99,24.8136]
[1719298598695,9.12,136.04,135.99,15.6936]
[1719298598879,9.12,136.04,135.99,24.8136]
[1719298599195,9.12,136.04,135.99,21.47850867]
[1719298599383,9.12,136.04,135.99,30.59850867]
[1719298600180,9.12,136.04,135.99,21.47850867]
[1719298601186,9.12,136.03,135.99,21.47850867]
[1719298601386,9.12,136.04,135.99,21.47850867]
[1719298602283,9.12,136.03,135.99,21.47850867]
[1719298603890,100.0,136.02,135.95,396.86777564]
[1719298604112,9.12,136.01,135.96,9.12]
[1719298604309,9.12,136.01,135.95,390.4]
[1719298604613,9.12,136.01,135.95,399.52]
[1719298605010,9.12,136.01,135.95,390.4]
[1719298605304,9.12,136.01,135.95,399.52]
[1719298605509,9.12,136.0,135.95,390.4]
[1719298605710,9.12,136.0,135.95,399.52]
[1719298605893,9.12,136.01,135.95,399.52]
[1719298606384,9.12,136.01,135.96,9.12]
[1719298607309,9.12,136.01,135.95,396.390428]
[1719298607499,100.0,136.02,135.95,405.510428]
[1719298607701,9.12,136.01,135.95,405.510428]
[1719298607902,9.12,136.01,135.96,9.12]
[1719298608394,9.12,136.01,135.95,5.990428]
[1719298608596,9.12,136.01,135.96,9.12]
[1719298609715,9.12,136.03,135.98,9.12]
[1719298609916,131.5875,136.04,135.98,9.12]
[1719298610117,131.5875,136.04,135.99,9.12]
[1719298610421,131.5875,136.04,135.98,9.12]
[1719298610715,22.4675,136.04,135.99,9.12]
[1719298612105,100.0,136.06,135.99,9.12]
[1719298612305,9.12,136.05,135.99,9.12]
[1719298612492,100.0,136.06,135.99,9.12]
[1719298612819,9.12,136.05,135.99,9.12]
[1719298615723,100.0,136.06,135.99,9.12]
[1719298616022,9.12,136.05,135.99,9.12]
[1719298616220,100.0,136.06,135.99,9.12]
[1719298616514,23.0997,136.07,136.0,9.12]
[1719298616718,100.0,136.08,136.03,9.12]
[1719298616719,109.12,136.08,136.03,9.12]
[1719298617019,100.0,136.08,136.03,9.12]
[1719298618919,9.12,136.09,136.04,9.12]
[1719298619415,100.0,136.1,136.04,9.12]
[1719298619615,9.12,136.09,136.04,9.12]
[1719298619925,100.0,136.07,136.03,9.12]
[1719298620104,100.0,136.05,136.01,9.12]
[1719298620298,100.0,136.05,136.0,9.12]
[1719298621715,100.0,136.05,136.01,9.12]
[1719298625738,0.17,136.08,136.01,9.12]
[1719298625936,122.7655,136.11,136.05,9.12]
[1719298626441,131.8855,136.11,136.05,9.12]
[1719298626846,122.7655,136.11,136.05,9.12]
[1719298627346,9.12,136.1,136.05,9.12]
[1719298628043,9.12,136.1,136.04,9.12]
[1719298628347,9.12,136.1,136.02,16.6106]
[1719298628348,100.0,136.09,136.02,16.6106]
[1719298628642,100.0,136.09,136.04,9.12]
[1719298629747,100.0,136.09,136.05,9.12]
[1719298630521,22.7655,136.11,136.02,16.6106]
[1719298630522,100.0,136.11,136.07,9.12]
[1719298630738,100.0,136.13,136.08,9.12]
[1719298630948,109.12,136.13,136.08,9.12]
[1719298633148,100.0,136.13,136.08,9.12]
[1719298633330,100.0,136.13,136.08,24.3625]
[1719298633529,100.0,136.13,136.09,9.12]
[1719298634349,100.0,136.13,136.08,15.2425]
[1719298634534,100.0,136.13,136.08,24.3625]
[1719298635022,122.14,136.15,136.09,9.12]
[1719298635332,131.26,136.15,136.1,9.12]
[1719298635730,100.0,136.15,136.11,9.12]
[1719298636848,109.12,136.17,136.11,9.12]
[1719298637643,109.12,136.17,136.12,9.12]
[1719298637949,9.12,136.16,136.11,9.12]
[1719298638763,100.0,136.17,136.11,9.12]
[1719298639078,9.12,136.16,136.11,9.12]
[1719298639437,9.12,136.16,136.1,9.12]
[1719298640260,100.0,136.12,136.08,15.2425]
[1719298640566,100.0,136.12,136.08,24.3625]
[1719298642167,100.0,136.12,136.09,9.12]
[1719298643942,100.0,136.12,136.08,24.3625]
[1719298644360,100.0,136.12,136.06,5.71834497]
[1719298644566,109.12,136.12,136.07,9.12]
[1719298645156,100.0,136.1,136.03,5.91206605]
[1719298645353,100.0,136.1,136.06,9.12]
[1719298645667,100.0,136.1,136.05,9.12]
[1719298645872,100.0,136.1,136.06,9.12]
[1719298646569,100.0,136.12,136.07,9.12]
[1719298646867,109.12,136.12,136.07,9.12]
[1719298647673,100.0,136.12,136.07,9.12]
[1719298647875,109.12,136.12,136.07,9.12]
[1719298649076,100.0,136.12,136.08,9.12]
[1719298649379,109.12,136.12,136.07,9.12]
[1719298649878,109.12,136.12,136.06,9.12]
[1719298650458,9.12,136.11,136.06,9.12]
[1719298654464,109.12,136.12,136.06,9.12]
[1719298654662,109.12,136.12,136.07,9.12]
[1719298654878,100.0,136.12,136.07,9.12]
[1719298655957,22.6882,136.13,136.08,9.12]
[1719298658279,22.6882,136.13,136.04,410.4]
[1719298658280,6.2678,136.13,136.09,9.12]
[1719298659365,109.12,136.14,136.09,9.12]
[1719298662294,100.0,136.12,136.09,9.12]
[1719298662487,100.0,136.12,136.08,9.12]
[1719298663481,100.0,136.12,136.04,410.4]
[1719298663684,100.0,136.12,136.08,9.12]
[1719298673108,100.0,136.12,136.05,0.34]
[1719298673306,100.0,136.12,136.08,9.12]
[1719298674823,100.0,136.12,136.07,9.12]
[1719298675111,22.2646,136.11,136.07,9.12]
[1719298675700,22.2646,136.11,136.06,9.12]
[1719298680637,100.0,136.1,136.04,410.4]
[1719298680830,100.0,136.1,136.06,9.12]